{"text_format":"1","workbook":"xlsx","n_sheets":5,"sheets":["Formulario Apertura","AUX","Anexo Nóminas","Anexo Nómina Rep. Legal","Anexo de Conformidad"],"not_rendered":{"charts":0,"images":5,"macros":1,"external_links":0,"defined_names":3,"comments":0,"pivot_tables":0},"unopened":[],"bounds":{"document_bytes":16777216,"sheet_cells":100000,"rows_first":2000,"rows_last":500,"rows_between":2000,"halvings":0,"cell_chars":16384,"cell_head_chars":4096},"cells_cut":0,"cells_raw":0,"read":"whole","date_system":"1900"}

{"sheet":"Formulario Apertura","index":0,"n_rows":129,"n_cols":73,"rows_kept":129,"cut":false,"hidden":false,"merged":[[107,1,107,5],[107,7,107,11],[107,13,107,18],[115,2,126,8],[127,2,127,8],[9,0,9,5],[10,0,10,5],[11,0,11,5],[12,0,12,5],[13,0,13,5],[115,11,126,18],[111,0,111,19],[41,0,41,2],[42,0,42,19],[44,0,44,2],[45,0,45,2],[46,0,46,2],[47,0,47,19],[49,0,49,19],[50,0,50,19],[56,0,56,19],[41,3,41,10],[43,1,43,2],[43,3,43,6],[44,15,46,16],[44,17,46,19],[44,11,44,14],[45,3,45,6],[45,7,45,10],[46,3,46,6],[46,7,46,10],[43,7,43,10],[51,2,51,8],[51,10,51,14],[51,16,51,19],[39,11,39,19],[40,11,40,19],[48,6,48,7],[1,0,1,19],[2,0,2,2],[3,0,3,2],[4,0,4,2],[5,0,5,19],[6,0,7,5],[8,0,8,5],[14,0,14,19],[17,0,17,5],[15,0,16,5],[2,3,2,19],[8,15,8,16],[9,15,9,16],[10,15,10,16],[11,15,11,16],[12,15,12,16],[13,15,13,16],[8,11,8,14],[9,11,9,14],[41,11,41,19],[12,11,12,14],[112,1,112,8],[3,12,3,19],[4,3,4,7],[4,8,4,9],[4,10,4,14],[3,3,3,10],[6,17,6,19],[6,9,7,9],[6,10,7,10],[6,11,7,14],[6,15,7,16],[6,6,7,7],[6,8,7,8],[8,6,8,7],[9,6,9,7],[10,6,10,7],[11,6,11,7],[12,6,12,7],[13,6,13,7],[23,0,23,19],[24,0,24,2],[25,0,25,2],[10,11,10,14],[11,11,11,14],[13,11,13,14],[15,6,16,7],[15,8,16,8],[15,9,16,9],[15,10,16,10],[15,11,16,14],[15,15,16,16],[15,17,15,19],[18,0,18,5],[19,0,19,5],[20,0,20,5],[21,0,21,5],[22,0,22,5],[17,15,17,16],[18,15,18,16],[19,15,19,16],[20,15,20,16],[21,15,21,16],[22,15,22,16],[17,11,17,14],[18,11,18,14],[19,11,19,14],[20,11,20,14],[21,11,21,14],[22,11,22,14],[17,6,17,7],[18,6,18,7],[19,6,19,7],[20,6,20,7],[21,6,21,7],[40,0,40,2],[35,3,35,10],[36,3,36,10],[33,3,33,10],[22,6,22,7],[28,7,28,10],[26,0,26,2],[27,0,27,2],[28,0,28,2],[27,3,27,6],[27,8,27,10],[29,0,29,2],[30,0,30,2],[32,0,32,19],[31,1,31,19],[29,15,29,19],[29,3,29,13],[30,3,30,13],[30,15,30,19],[38,11,38,19],[24,11,24,19],[26,3,26,6],[26,7,26,8],[26,9,26,13],[25,10,25,15],[25,3,25,6],[26,15,26,19],[24,3,24,9],[28,12,28,14],[28,16,28,19],[27,15,27,16],[28,3,28,5],[27,17,27,19],[27,11,27,12],[27,13,27,14],[53,8,53,19],[54,2,54,19],[55,1,55,19],[33,1,33,2],[48,14,48,19],[45,11,45,14],[44,3,44,6],[44,7,44,10],[46,11,46,14],[43,11,43,14],[33,11,33,19],[34,11,34,19],[35,11,35,19],[36,11,36,19],[38,1,38,2],[38,3,38,10],[39,3,39,10],[40,3,40,10],[34,3,34,10],[34,0,34,2],[35,0,35,2],[36,0,36,2],[37,0,37,19],[39,0,39,2],[68,1,68,19],[88,13,88,18],[57,3,57,9],[57,10,57,11],[57,12,57,14],[57,15,57,17],[57,18,57,19],[57,0,57,2],[58,0,58,19],[67,0,67,19],[87,1,87,5],[62,0,62,19],[63,1,63,19],[66,1,66,19],[65,1,65,19],[64,1,64,19],[71,1,86,5],[127,11,127,18],[128,11,128,18],[4,16,4,19],[113,2,113,3],[113,11,113,14],[109,8,109,10],[108,13,108,18],[109,14,109,17],[108,1,108,5],[109,2,109,4],[91,1,91,19],[108,7,108,11],[89,2,89,4],[88,7,88,11],[89,8,89,10],[89,14,89,17],[69,4,69,6],[69,12,69,14],[87,7,87,11],[87,13,87,18],[88,1,88,5],[59,1,59,19],[60,1,60,19],[61,1,61,19]]}
[null,null,null,null,null,null,null,null,null,null,null,null,null,null,null,null,null,null,null,null,null,null,null,null,null,null,null,null,null,null,null,null,null,null,null,null,null,null,null,null,null,null,null,null,null,null,null,null,null,null,null,null,null,null,null,null,null,null,null,null,null,null,null,null,null,null,null,null,null,null,1,null,1]
["DATOS DEL CLIENTE"]
["Razón Social de la Persona Jurídica:"]
["Domicilio legal:",null,null,null,null,null,null,null,null,null,null,"Correo Electrónico:"]
["Número de Identificación Tributaria NIT:",null,null,null,null,null,null,null,"Tipo de Sociedad:",null,null,null,null,null,null,"Teléfono fijo o celular:"]
["NÓMINA DE MIEMBROS DEL DIRECTORIO / PERSONAL EJECUTIVO (1): "]
["Nombre y Apellido:",null,null,null,null,null,"Número de Documento de Identidad",null,"Ext.","Nacionalidad","Actividad \nEconómica","Dirección del Domicilio particular",null,null,null,"Cargo",null,"Fecha de Nacimiento"]
[null,null,null,null,null,null,null,null,null,null,null,null,null,null,null,null,null,"DD","MM","AA"]
[]
[]
[]
[]
[]
[]
["NÓMINA DE SOCIOS, ACCIONISTAS, ASOCIADOS O MIEMBROS QUE TENGAN UNA PARTICIPACIÓN IGUAL O MAYOR A 10% (1) (2):"]
["Nombre y Apellido:",null,null,null,null,null,"Número de Documento de Identidad",null,"Ext.","Nacionalidad","Actividad \nEconómica","Dirección del Domicilio particular",null,null,null,"Porcentaje de Participación",null,"Fecha de Nacimiento"]
[null,null,null,null,null,null,null,null,null,null,null,null,null,null,null,null,null,"DD","MM","AA"]
[]
[]
[]
[]
[]
[]
["DATOS DEL(OS) REPRESENTANTE(S) LEGAL(ES) (3):"]
["Nombres  y Apellidos:",null,null,null,null,null,null,null,null,null,"Dirección Domicilio:"]
["N° documento de Identidad:",null,null,null,null,null,null,"Ext.",null,"Nacionalidad:",null,null,null,null,null,null,"Fecha de Nacimiento:"]
["Estado Civil:",null,null,null,null,null,null,"Nombre Cónyuge:",null,null,null,null,null,null,"Teléfono Fijo / Celular:"]
["Lugar de Trabajo:",null,null,null,null,null,null,"Cargo:",null,null,null,"Teléfono laboral:",null,null,null,"Profesión:"]
["País de Residencia",null,null,null,null,null,"Dirección Laboral:",null,null,null,null,"Fecha de Ingreso:",null,null,null,"Ingreso Mensual:"]
["Referencia Personal 1:",null,null,null,null,null,null,null,null,null,null,null,null,null,"Teléfono Fijo / Celular:"]
["Referencia Personal 2:\nEn caso que el Representante Legal sea de nacionalidad extranjera \"con residencia\" en Bolivia registrar una segunda referencia comercial, laboral o bancaria",null,null,null,null,null,null,null,null,null,null,null,null,null,"Teléfono Fijo / Celular:"]
[null,"(1) En caso de requerirse filas adicionales a las desplegadas inicialmente para el registro de Miembros del Directorio, Personal Ejecutivo, Socios, Accionistas, Asociados o Miembros, se debe completar el anexo \"Nóminas\" adjunto al presente formulario.  \n\n(2) En caso que el socio o accionista de la persona jurídica sea otra persona jurídica se debe adjuntar la nómina de socios, accionistas o miembros que en última instancia (persona natural) llegan a tener participación accionaria o societaria igual o mayor al 10% del capital social de esta empresa, o miembros que ostentan el control de la persona jurídica, indicando el nombre completo, número de documento de identidad y porcentaje de participación.\n\n(3) En caso de requerirse filas adicionales para el registro de más Representantes Legales, se debe completar el anexo \"Nómina Rep. Legal\" adjunto al presente formulario.  "]
["REFERENCIAS COMERCIALES/BANCARIAS DE LA EMPRESA (Registrar Obligatorimente las dos Referencias Comerciales/Bancarias de la Empresa)"]
[null,null,null,"Referencia 1",null,null,null,null,null,null,null,"Referencia 2"]
["Nombre persona de contacto:"]
["Institución:"]
["Teléfono fijo o móvil:"]
["PERSONAS DE CONTACTO EN LA EMPRESA"]
[null,null,null,"Referencia 1",null,null,null,null,null,null,null,"Referencia 2"]
["Nombre persona de contacto:"]
["Cargo:"]
["Teléfono fijo o móvil:"]
["INFORMACIÓN PRODUCTOS SOLICITADOS."]
[null,null,null,"Solicitud 1",null,null,null,"Solicitud 2",null,null,null,"Solicitud 3"]
["Tipo de cuenta: ",null,null,null,null,null,null,null,null,null,null,null,null,null,null,"Monto mensual de la(s) cuenta(s) (en Bs):"]
["Moneda: "]
["Administración:"]
["SERVICIOS ADICIONALES (marcar con una \"X\", en caso de seleccionar cualquier servicio adicional, se debe completar el formulario de solicitud e-Bisa, formulario de administración de tarjeta de débito y/o chequera, según corresponda)."]
[null,null,null,null,"e-Bisa",null,"Tarjeta de Débito",null,null,"Chequera",null,null,null,"Otro:"]
["INFORMACIÓN ADICIONAL "]
["1.- INFORMACIÓN DE LA EMPRESA (marcar con una \"X\" y completar información que corresponda):"]
[null,null,"La empresa cotiza en bolsa o forma parte de una Corporación Internacional que cotiza en Bolsa.",null,null,null,null,null,null,"Nombre de la Bolsa:",null,null,null,null,null,"Código"]
[null,null,"La empresa es Estatal, ya sea del estado Boliviano o de un estado extranjero. "]
[null,null,"La empresa es una Entidad Financiera no Norteamericana. ",null,null,null,null,"GIIN:"]
[null,null,"De la información recabada en libros y registros de socios, accionistas o miembros de la persona jurídica de la cual soy representante legal; certifico, con calidad de Declaración Jurada, que ninguno de los beneficiarios finales a persona natural, que en última instancia llegan a tener participación accionaria o societaria igual o mayor al 10% del capital social de la empresa, o miembros que ostentan el control de la persona jurídica, es ciudadano, residente o portador de pasaporte norteamericano."]
[null,"En caso de NO seleccionar una de las cuatro opciones mencionadas, se debe adjuntar al presente, el formulario W8-BEN-E debidamente llenado y firmado por el represente legal y el formulario de Diligencia Adicional debidamente llenado por cada socio, accionista con participación accionaria o societaria igual o mayor al 10% del capital social de esta empresa o miembro y representante legal de la empresa."]
["2.- RELACIÓN COMERCIAL"]
["Motivo de la apertura de la cuenta:",null,null,null,null,null,null,null,null,null,"Sucursal origen de la Apertura:",null,null,null,null,"¿El Banco BISA será agente de retención de IVA?"]
["AUTORIZACIONES "]
[null,"• Autorizo (Autorizamos) al Banco Bisa S.A. en calidad de Representante Legal de la empresa a remitir toda la información que la Internal Revenue Service – IRS (Administración de Rentas Internas) de los Estados Unidos de América, requiera bajo el alcance de la Ley - FATCA - de Cumplimiento Fiscal de Cuentas en el Extranjero (Foreign Account Tax Compliance Act), con relación al movimiento y saldos de cuentas que la empresa mantiene en su institución bancaria. La presente autorización la otorgo bajo el alcance y permisión establecida en el Art. 472 de la Ley de Servicios Financieros del Estado Plurinacional de Bolivia, sobre el derecho de reserva y confidencialidad."]
[null,"• Asimismo, autorizo (autorizamos) al Banco BISA S.A. a solicitar en cualquier momento, información personal y de la entidad a la que represento (representamos) de instituciones y agencias de control y/o de supervisión así como de otras fuentes que estime necesarias. Sólo en caso de requerir un sobregiro en cuenta corriente, autorizo (autorizamos) al Banco a realizar la consulta en la Central de Información Crediticia (CIC) de la Autoridad de Supervisión del Sistema Financiero (ASFI) y al informe confidencial del Buro de Información (BI) que corresponda."]
[null,"• En caso de tener retenciones judiciales registradas: habiendo sido informado sobre el motivo y monto de la retención y que de continuar con la apertura de la cuenta los fondos que ingresen a la misma serán retenidos hasta cubrir el importe correspondiente a la retención, autorizo (autorizamos) continuar con el proceso para la apertura de la cuenta.\n\n• Yo (nosotros) como titular(es) de la cuenta en Euros, en caso de que el Banco no tenga disponibilidad inmediata en Euros al momento de solicitar el retiro de fondos de la indicada cuenta, acepto(mos) recibir el importe que corresponda en bolivianos utilizando la cotización referencial del Euro en Bolivianos, según la publicación diaria del Banco Central de Bolivia (BCB) o dólares estadounidenses al tipo de cambio vigente a la fecha del retiro. "]
["INFORMACIÓN PARA EL CLIENTE"]
[null,"Estimado cliente, le informamos que la tarjeta de débito innominada que le ha sido entregada puede ser utilizada en el exterior y para realizar compras por internet, estos servicios tienen la opción de ser habilitados o deshabilitados mediante la Banca por internet e-BISA, Bisa Responde o en cualquiera de nuestras oficinas a nivel nacional."]
[null,"La tarjeta de débito se encuentra habilitada para realizar compras por internet en comercios de Bolivia, por un monto diario de Bs. 300.- y para pago por servicios TIGO por un monto diario de Bs. 1.000.-La habilitación de la tarjeta de débito para compras por internet en comercios del exterior o la modificación del límite diario para compras por internet aplicará para comercios de Bolivia y del Exterior por el periodo definido por el cliente. Transcurrido el periodo de habilitación de la tarjeta de débito para compras por internet o la modificación de límite diario del servicio de compras por internet, se habilitará nuevamente el monto diario de Bs. 300.- para comercios de Bolivia. Si usted no requiere esta habilitación, por favor solicitar la inhabilitación del servicio en cualquiera de nuestras oficinas o a través de Bisa Responde."]
[null,"La tarjeta de débito se encuentra habilitada para realizar transacciones CONTACTLESS, sin el ingreso de PIN hasta un límite de Bs 150.- por operación y hasta un máximo de 4 transacciones al día."]
[null,"Le recomendamos, realizar periodicamente la revisión del extracto de su cuenta para verificar sus transacciones. \nLe informamos que el plazo para solicitar la revisión de transacciones no reconocidas o no satisfactorias, realizadas con Tarjeta de Débito por internet, debe efectuarse antes de los cien (100) de realizada la transacción. Asimismo, dichas solicitudes pueden ser presentadas en los canales del Banco a su disposición (Página Web, Plataforma de atención al cliente o Bisa Responde).\n* No se deberá superar las 35 transacciones por cada solicitud presentada. \n* El plazo estipulado en el presente comunicado no aplica al Seguro de Protección de Tarjeta de Débito.  "]
["REGISTRO DE FIRMAS"]
[null,"La información proporcionada tiene carácter de declaración jurada, declaro(amos) que la información proporcionada es autentica y fidedigna."]
[null,null,null,"Lugar:",null,null,null,null,null,null,null,"Fecha:",{"$f":"TODAY()","v":"2022-11-29"}]
[]
[]
[]
[]
[]
[]
[]
[]
[]
[]
[]
[]
[]
[]
[]
[]
[]
[null,"Firma Representante Legal  (1)",null,null,null,null,null,"Firma Representante Legal  (2)",null,null,null,null,null,"Firma Representante Legal  (3)"]
[null,{"$f":"D25","v":0},null,null,null,null,null,{"$f":"'Anexo Nómina Rep. Legal'!C5","v":0},null,null,null,null,null,{"$f":"'Anexo Nómina Rep. Legal'!C13","v":0}]
[null,"C.I.",{"$f":"D26","v":0},null,null,{"$f":"I26","v":0},null,"C.I.",{"$f":"'Anexo Nómina Rep. Legal'!C6","v":0},null,null,{"$f":"'Anexo Nómina Rep. Legal'!H6","v":0},null,"C.I.",{"$f":"'Anexo Nómina Rep. Legal'!C14","v":0},null,null,null,{"$f":"'Anexo Nómina Rep. Legal'!H14","v":0}]
[]
[null,"NOTA:  En caso de requerirse firmas adicionales, desplegar las filas siguientes presionando el símbolo \"+\" ubicado en la parte izquierda del formulario.  "]
[]
[]
[]
[]
[]
[]
[]
[]
[]
[]
[]
[]
[]
[]
[]
[null,"Firma Representante Legal  (4)",null,null,null,null,null,"Firma Representante Legal  (5)",null,null,null,null,null,"Firma Representante Legal  (6)"]
[null,{"$f":"'Anexo Nómina Rep. Legal'!C21","v":0},null,null,null,null,null,{"$f":"'Anexo Nómina Rep. Legal'!C29","v":0},null,null,null,null,null,{"$f":"'Anexo Nómina Rep. Legal'!C37","v":0}]
[null,"C.I.",{"$f":"'Anexo Nómina Rep. Legal'!C22","v":0},null,null,{"$f":"'Anexo Nómina Rep. Legal'!H22","v":0},null,"C.I.",{"$f":"'Anexo Nómina Rep. Legal'!C30","v":0},null,null,{"$f":"'Anexo Nómina Rep. Legal'!H30","v":0},null,"C.I.",{"$f":"'Anexo Nómina Rep. Legal'!C38","v":0},null,null,null,{"$f":"'Anexo Nómina Rep. Legal'!H38","v":0}]
[]
["USO INTERNO DEL BANCO (esta sección puede ser de llenado manual):"]
[null,"¿Cliente con registro de cuentas clausuradas? (para solicitudes de cuentas corrientes)."]
[null,null,"Razón Social y NIT de la Persona Jurídica.",null,null,"SI",null,"NO",null,null,null,"Nombre Completo y CI Representante Legal.",null,null,null,null,"SI",null,"NO"]
[]
[]
[]
[]
[]
[]
[]
[]
[]
[]
[]
[]
[]
[null,null,"Firma y sello del Asistente responsable de la apertura de la(s) cuenta(s). ",null,null,null,null,null,null,null,null,"Firma y sello del Responsable del Sector:"]
[null,null,null,null,null,null,null,null,null,null,null,"Confirmo haber realizado la verificación de datos de la apertura de la cuenta."]

{"sheet":"AUX","index":1,"n_rows":16,"n_cols":9,"rows_kept":16,"cut":false,"hidden":true,"merged":[[3,2,12,2]]}
["EXTENSIÓN","TIPO DE SOCIEDAD","Promedio de Movimiento","Moneda","Manejo de la cuenta","Tipo de Cuenta","Lugar","Retiene Impuestos?","Ingresos (P. Nat)"]
["CBE","Sociedad Colectiva, Sociedad de Responsabilidad Limitada o Sociedad en Comandita Simple ","de USD 0 a USD 100,000.-","Bolivianos ","Indistinta ","Caja de Ahorro","La Paz","Sí","De 10 a 1000"]
["CCB","Sociedad Anónima o Sociedad en Comandita por Acciones","Mayores a USD 100,000.- ","Dólares Estadounidenses","Conjunta","Cuenta Corriente","El Alto","No","De 1.001 a 3.000"]
["CCH","Sociedad Anónima de Economía Mixta","Temporalmente sin uso, debido a que el campo de promedio, por instrucción de la UPC, será un campo abierto.","Euros","Individual",null,"Santa Cruz",null,"De 3.001 a 5.000"]
["CLP","Sociedad Anónima en Formación ",null,null,null,null,"Cochabamba",null,"De 5.001 a 8.000"]
["COR","Asociación Accidental o de Cuentas en Participación ",null,null,null,null,"Oruro",null,"De 8.001 a 10.000"]
["CPA","Empresa constituida en el exterior con representación en Bolivia ",null,null,null,null,"Potosi",null,"De 10.001 a 15.000"]
["CPO","Organización Social, Organización no Gubernamental (ONG), Fundación o Entidad Civil sin fines de lucro",null,null,null,null,"Tarija",null,"De 15.001 a 20.000"]
["CSC","Organización Religiosa y Espiritual",null,null,null,null,"Pando ",null,"De 20.001 a 50.000"]
["CTJ","Cooperativa",null,null,null,null,"Beni",null,"De 50.001 a 80.000"]
["PAS","Embajada",null,null,null,null,"Sucre",null,"De 80.001 a 100.000"]
["CEE","Banco del Exterior sin residencia en Bolivia",null,null,null,null,null,null,"De 100.000 a 300.000"]
["CEX","Organización Económica Comunitaria",null,null,null,null,null,null,"Mayor a 300.000"]
["DCR"]
["DCC"]
["DCO"]

{"sheet":"Anexo Nóminas","index":2,"n_rows":30,"n_cols":17,"rows_kept":30,"cut":false,"hidden":false,"merged":[[1,0,1,18],[2,0,2,3],[2,4,2,18],[3,0,3,18],[6,13,6,15],[6,16,6,18],[7,0,7,3],[7,4,7,5],[7,11,7,12],[7,13,7,15],[7,16,7,18],[4,6,5,6],[4,4,5,5],[4,0,5,3],[6,0,6,3],[6,4,6,5],[6,11,6,12],[4,16,5,18],[4,13,5,15],[4,11,5,12],[4,10,5,10],[4,7,4,9],[11,11,11,12],[11,13,11,15],[8,0,8,3],[8,4,8,5],[8,11,8,12],[8,13,8,15],[9,0,9,3],[9,4,9,5],[9,11,9,12],[9,13,9,15],[8,16,8,18],[9,16,9,18],[10,16,10,18],[11,16,11,18],[12,16,12,18],[13,16,13,18],[14,0,14,3],[14,4,14,5],[14,11,14,12],[14,13,14,15],[12,0,12,3],[12,4,12,5],[12,11,12,12],[12,13,12,15],[13,0,13,3],[13,4,13,5],[13,11,13,12],[13,13,13,15],[10,0,10,3],[10,4,10,5],[10,11,10,12],[10,13,10,15],[11,0,11,3],[11,4,11,5],[14,16,14,18],[15,16,15,18],[16,0,16,18],[17,0,18,3],[17,4,18,5],[17,6,18,6],[17,7,17,9],[17,10,18,10],[17,11,18,12],[17,13,18,15],[15,0,15,3],[15,4,15,5],[15,11,15,12],[15,13,15,15],[21,0,21,3],[21,4,21,5],[21,11,21,12],[21,13,21,15],[22,0,22,3],[22,4,22,5],[22,11,22,12],[22,13,22,15],[19,0,19,3],[19,4,19,5],[19,11,19,12],[19,13,19,15],[20,0,20,3],[20,4,20,5],[20,11,20,12],[20,13,20,15],[26,0,26,3],[26,4,26,5],[26,11,26,12],[26,13,26,15],[23,0,23,3],[23,4,23,5],[23,11,23,12],[23,13,23,15],[24,0,24,3],[24,4,24,5],[24,11,24,12],[24,13,24,15],[27,16,27,18],[28,16,28,18],[29,0,29,18],[17,16,18,18],[19,16,19,18],[20,16,20,18],[21,16,21,18],[22,16,22,18],[23,16,23,18],[24,16,24,18],[25,16,25,18],[26,16,26,18],[27,0,27,3],[27,4,27,5],[27,11,27,12],[27,13,27,15],[28,0,28,3],[28,4,28,5],[28,11,28,12],[28,13,28,15],[25,0,25,3],[25,4,25,5],[25,11,25,12],[25,13,25,15]]}
[]
["DATOS DEL CLIENTE:"]
["Razón social de la persona jurídica solicitante:",null,null,null,{"$f":"'Formulario Apertura'!D3","v":0}]
["NÓMINA DE MIEMBROS DEL DIRECTORIO / PERSONAL EJECUTIVO:"]
["Nombre y Apellido",null,null,null,"Número de Documento de Identidad",null,"Ext.","Fecha de Nacimiento",null,null,"Nacionalidad","Actividad Económica",null,"Dirección Domicilio Particular",null,null,"Cargo"]
[null,null,null,null,null,null,null,"DD","MM","AA"]
[]
[]
[]
[]
[]
[]
[]
[]
[]
[]
["NÓMINA DE SOCIOS, ACCIONISTAS,ASOCIADOS O MIEMBROS (*):"]
["Nombre y Apellido o Razon Social",null,null,null,"Número de Documento de Identidad",null,"Ext.","Fecha de Nacimiento",null,null,"Nacionalidad","Actividad Económica",null,"Dirección Domicilio Particular",null,null,"Porcentaje de Participación"]
[null,null,null,null,null,null,null,"DD","MM","AA"]
[]
[]
[]
[]
[]
[]
[]
[]
[]
[]
["(*) En caso que el socio o accionista de la persona jurídica sea otra persona jurídica se debe adjuntar la nómina de socios, accionistas o miembros que en última instancia (persona natural) llegan a tener participación accionaria o societaria igual o mayor al 10% del capital social de esta empresa, o miembros que ostenten el control de la persona jurídica, indicando el nombre completo, número de documento de identidad y porcentaje de participación.\n(**) Se deberá obtener el \"Número de la matrícula de inscripción en el Registro de Comercio o registro en los Gobiernos Autónomos de los Departamentos o Municipios del Estado Plurinacional de Bolivia u otra documentación emitida por autoridad competente que acredite su existencia legal."]

{"sheet":"Anexo Nómina Rep. Legal","index":3,"n_rows":43,"n_cols":16,"rows_kept":43,"cut":false,"hidden":false,"merged":[[5,0,5,1],[5,2,5,5],[5,9,5,14],[6,0,6,1],[6,2,6,5],[6,6,6,7],[6,8,6,12],[6,14,6,18],[1,0,1,18],[3,0,3,18],[4,0,4,1],[4,2,4,8],[4,10,4,18],[2,5,2,18],[2,0,2,4],[7,0,7,1],[7,14,7,15],[8,0,8,1],[8,2,8,4],[8,6,8,9],[8,11,8,13],[8,15,8,18],[7,16,7,18],[7,12,7,13],[7,8,7,10],[7,2,7,6],[11,0,11,18],[12,0,12,1],[12,2,12,8],[12,10,12,18],[13,0,13,1],[13,2,13,5],[13,9,13,14],[9,0,9,1],[9,2,9,12],[9,14,9,18],[10,0,10,1],[10,2,10,12],[10,14,10,18],[16,0,16,1],[16,2,16,4],[16,6,16,9],[16,11,16,13],[16,15,16,18],[17,0,17,1],[17,2,17,12],[17,14,17,18],[14,0,14,1],[14,2,14,5],[14,6,14,7],[14,8,14,12],[14,14,14,18],[15,0,15,1],[15,2,15,6],[15,8,15,10],[15,12,15,13],[15,14,15,15],[15,16,15,18],[21,0,21,1],[21,2,21,5],[21,9,21,14],[22,0,22,1],[22,2,22,5],[22,6,22,7],[22,8,22,12],[22,14,22,18],[18,0,18,1],[18,2,18,12],[18,14,18,18],[20,0,20,1],[20,2,20,8],[20,10,20,18],[19,0,19,18],[23,0,23,1],[24,0,24,1],[24,2,24,4],[24,6,24,9],[24,11,24,13],[24,15,24,18],[23,2,23,6],[23,8,23,10],[23,12,23,13],[23,14,23,15],[23,16,23,18],[28,0,28,1],[28,2,28,8],[28,10,28,18],[29,0,29,1],[29,2,29,5],[29,9,29,14],[25,0,25,1],[25,2,25,12],[25,14,25,18],[26,0,26,1],[26,2,26,12],[26,14,26,18],[27,0,27,18],[30,0,30,1],[30,2,30,5],[30,6,30,7],[30,8,30,12],[30,14,30,18],[31,0,31,1],[31,2,31,6],[31,8,31,10],[31,12,31,13],[31,14,31,15],[31,16,31,18],[38,8,38,12],[38,14,38,18],[34,0,34,1],[34,2,34,12],[34,14,34,18],[36,0,36,1],[36,2,36,8],[36,10,36,18],[32,0,32,1],[32,2,32,4],[32,6,32,9],[32,11,32,13],[32,15,32,18],[33,0,33,1],[33,2,33,12],[33,14,33,18],[35,0,35,18],[37,0,37,1],[37,2,37,5],[37,9,37,14],[38,0,38,1],[38,2,38,5],[38,6,38,7],[41,0,41,1],[41,2,41,12],[41,14,41,18],[42,0,42,1],[42,2,42,12],[42,14,42,18],[39,0,39,1],[40,0,40,1],[40,2,40,4],[40,6,40,9],[40,11,40,13],[40,15,40,18],[39,2,39,6],[39,8,39,10],[39,12,39,13],[39,14,39,15],[39,16,39,18]]}
[]
["DATOS DEL CLIENTE:"]
["Razón social de la persona jurídica solicitante:",null,null,null,null,{"$f":"'Formulario Apertura'!D3","v":0}]
["NÓMINA REPRESENTANTE LEGAL 2:"]
["Nombres  y Apellidos:",null,null,null,null,null,null,null,null,"Dirección Domicilio:"]
["N° documento de Identidad:",null,null,null,null,null,"Ext.",null,"Nacionalidad:",null,null,null,null,null,null,"Fecha de Nacimiento:"]
["Estado Civil:",null,null,null,null,null,"Nombre Cónyuge:",null,null,null,null,null,null,"Teléfono Fijo / Celular:"]
["Lugar de Trabajo:",null,null,null,null,null,null,"Cargo:",null,null,null,"Teléfono laboral:",null,null,"Profesión:"]
["País de Residencia",null,null,null,null,"Dirección Laboral:",null,null,null,null,"Fecha de Ingreso:",null,null,null,"Ingreso Mensual:"]
["Referencia Personal 1:",null,null,null,null,null,null,null,null,null,null,null,null,"Teléfono Fijo / Celular:"]
["Referencia Personal 2:\nEn caso que el Representante Legal sea de nacionalidad extranjera \"con residencia\" en Bolivia registrar una segunda referencia comercial, laboral o bancaria",null,null,null,null,null,null,null,null,null,null,null,null,"Teléfono Fijo / Celular:"]
["NÓMINA REPRESENTANTE LEGAL 3:"]
["Nombres  y Apellidos:",null,null,null,null,null,null,null,null,"Dirección Domicilio:"]
["N° documento de Identidad:",null,null,null,null,null,"Ext.",null,"Nacionalidad:",null,null,null,null,null,null,"Fecha de Nacimiento:"]
["Estado Civil:",null,null,null,null,null,"Nombre Cónyuge:",null,null,null,null,null,null,"Teléfono Fijo / Celular:"]
["Lugar de Trabajo:",null,null,null,null,null,null,"Cargo:",null,null,null,"Teléfono laboral:",null,null,"Profesión:"]
["País de Residencia",null,null,null,null,"Dirección Laboral:",null,null,null,null,"Fecha de Ingreso:",null,null,null,"Ingreso Mensual:"]
["Referencia Personal 1:",null,null,null,null,null,null,null,null,null,null,null,null,"Teléfono Fijo / Celular:"]
["Referencia Personal 2:\nEn caso que el Representante Legal sea de nacionalidad extranjera \"con residencia\" en Bolivia registrar una segunda referencia comercial, laboral o bancaria",null,null,null,null,null,null,null,null,null,null,null,null,"Teléfono Fijo / Celular:"]
["NÓMINA REPRESENTANTE LEGAL 4:"]
["Nombres  y Apellidos:",null,null,null,null,null,null,null,null,"Dirección Domicilio:"]
["N° documento de Identidad:",null,null,null,null,null,"Ext.",null,"Nacionalidad:",null,null,null,null,null,null,"Fecha de Nacimiento:"]
["Estado Civil:",null,null,null,null,null,"Nombre Cónyuge:",null,null,null,null,null,null,"Teléfono Fijo / Celular:"]
["Lugar de Trabajo:",null,null,null,null,null,null,"Cargo:",null,null,null,"Teléfono laboral:",null,null,"Profesión:"]
["País de Residencia",null,null,null,null,"Dirección Laboral:",null,null,null,null,"Fecha de Ingreso:",null,null,null,"Ingreso Mensual:"]
["Referencia Personal 1:",null,null,null,null,null,null,null,null,null,null,null,null,"Teléfono Fijo / Celular:"]
["Referencia Personal 2:\nEn caso que el Representante Legal sea de nacionalidad extranjera \"con residencia\" en Bolivia registrar una segunda referencia comercial, laboral o bancaria",null,null,null,null,null,null,null,null,null,null,null,null,"Teléfono Fijo / Celular:"]
["NÓMINA REPRESENTANTE LEGAL 5:"]
["Nombres  y Apellidos:",null,null,null,null,null,null,null,null,"Dirección Domicilio:"]
["N° documento de Identidad:",null,null,null,null,null,"Ext.",null,"Nacionalidad:",null,null,null,null,null,null,"Fecha de Nacimiento:"]
["Estado Civil:",null,null,null,null,null,"Nombre Cónyuge:",null,null,null,null,null,null,"Teléfono Fijo / Celular:"]
["Lugar de Trabajo:",null,null,null,null,null,null,"Cargo:",null,null,null,"Teléfono laboral:",null,null,"Profesión:"]
["País de Residencia",null,null,null,null,"Dirección Laboral:",null,null,null,null,"Fecha de Ingreso:",null,null,null,"Ingreso Mensual:"]
["Referencia Personal 1:",null,null,null,null,null,null,null,null,null,null,null,null,"Teléfono Fijo / Celular:"]
["Referencia Personal 2:\nEn caso que el Representante Legal sea de nacionalidad extranjera \"con residencia\" en Bolivia registrar una segunda referencia comercial, laboral o bancaria",null,null,null,null,null,null,null,null,null,null,null,null,"Teléfono Fijo / Celular:"]
["NÓMINA REPRESENTANTE LEGAL 6:"]
["Nombres  y Apellidos:",null,null,null,null,null,null,null,null,"Dirección Domicilio:"]
["N° documento de Identidad:",null,null,null,null,null,"Ext.",null,"Nacionalidad:",null,null,null,null,null,null,"Fecha de Nacimiento:"]
["Estado Civil:",null,null,null,null,null,"Nombre Cónyuge:",null,null,null,null,null,null,"Teléfono Fijo / Celular:"]
["Lugar de Trabajo:",null,null,null,null,null,null,"Cargo:",null,null,null,"Teléfono laboral:",null,null,"Profesión:"]
["País de Residencia",null,null,null,null,"Dirección Laboral:",null,null,null,null,"Fecha de Ingreso:",null,null,null,"Ingreso Mensual:"]
["Referencia Personal 1:",null,null,null,null,null,null,null,null,null,null,null,null,"Teléfono Fijo / Celular:"]
["Referencia Personal 2:\nEn caso que el Representante Legal sea de nacionalidad extranjera \"con residencia\" en Bolivia registrar una segunda referencia comercial, laboral o bancaria",null,null,null,null,null,null,null,null,null,null,null,null,"Teléfono Fijo / Celular:"]

{"sheet":"Anexo de Conformidad","index":4,"n_rows":23,"n_cols":23,"rows_kept":23,"cut":false,"hidden":true,"merged":[[22,1,22,11],[21,14,21,24],[22,14,22,24],[1,0,1,25],[2,0,2,25],[3,0,3,25],[4,0,4,25],[5,0,5,25],[7,3,7,5],[7,22,7,24],[9,1,20,11],[9,14,20,24],[21,1,21,11]]}
[]
["AUTORIZACIONES "]
[{"$f":"'Formulario Apertura'!B60","v":"• Autorizo (Autorizamos) al Banco Bisa S.A. en calidad de Representante Legal de la empresa a remitir toda la información que la Internal Revenue Service – IRS (Administración de Rentas Internas) de los Estados Unidos de América, requiera bajo el alcance de la Ley - FATCA - de Cumplimiento Fiscal de Cuentas en el Extranjero (Foreign Account Tax Compliance Act), con relación al movimiento y saldos de cuentas que la empresa mantiene en su institución bancaria. La presente autorización la otorgo bajo el alcance y permisión establecida en el Art. 472 de la Ley de Servicios Financieros del Estado Plurinacional de Bolivia, sobre el derecho de reserva y confidencialidad."}]
[{"$f":"'Formulario Apertura'!B61","v":"• Asimismo, autorizo (autorizamos) al Banco BISA S.A. a solicitar en cualquier momento, información personal y de la entidad a la que represento (representamos) de instituciones y agencias de control y/o de supervisión así como de otras fuentes que estime necesarias. Sólo en caso de requerir un sobregiro en cuenta corriente, autorizo (autorizamos) al Banco a realizar la consulta en la Central de Información Crediticia (CIC) de la Autoridad de Supervisión del Sistema Financiero (ASFI) y al informe confidencial del Buro de Información (BI) que corresponda."}]
[{"$f":"'Formulario Apertura'!B62","v":"• En caso de tener retenciones judiciales registradas: habiendo sido informado sobre el motivo y monto de la retención y que de continuar con la apertura de la cuenta los fondos que ingresen a la misma serán retenidos hasta cubrir el importe correspondiente a la retención, autorizo (autorizamos) continuar con el proceso para la apertura de la cuenta.\n\n• Yo (nosotros) como titular(es) de la cuenta en Euros, en caso de que el Banco no tenga disponibilidad inmediata en Euros al momento de solicitar el retiro de fondos de la indicada cuenta, acepto(mos) recibir el importe que corresponda en bolivianos utilizando la cotización referencial del Euro en Bolivianos, según la publicación diaria del Banco Central de Bolivia (BCB) o dólares estadounidenses al tipo de cambio vigente a la fecha del retiro. "}]
["REGISTRO DE FIRMAS"]
[]
[null,{"$f":"'Formulario Apertura'!D70","v":"Lugar:"},null,null,null,null,null,null,null,null,null,null,null,null,null,null,null,null,null,{"$f":"'Formulario Apertura'!L70","v":"Fecha:"},null,null,{"$f":"'Formulario Apertura'!M70","v":"2022-11-29"}]
[]
[]
[]
[]
[]
[]
[]
[]
[]
[]
[]
[]
[]
[null,{"$f":"'Formulario Apertura'!B88","v":"Firma Representante Legal  (1)"},null,null,null,null,null,null,null,null,null,null,null,null,{"$f":"'Formulario Apertura'!H88","v":"Firma Representante Legal  (2)"}]
[null,{"$f":"IF('Formulario Apertura'!D25=\"\",\"\",'Formulario Apertura'!B25)","v":""}]